{"text_format":"1","workbook":"xlsx","n_sheets":8,"sheets":["Cas d'usages","Qualité Architecturale","Maturité&Casdusages","Analyse qualitative","Coût fixes","Analyse des gains directs","Analyse des gains indirects","RECAP"],"not_rendered":{"charts":2,"images":0,"macros":1,"external_links":1,"defined_names":4,"comments":2,"pivot_tables":0},"unopened":[],"bounds":{"document_bytes":16777216,"sheet_cells":100000,"rows_first":2000,"rows_last":500,"rows_between":2000,"halvings":0,"cell_chars":16384,"cell_head_chars":4096},"cells_cut":0,"cells_raw":0,"read":"whole","date_system":"1900"}

{"sheet":"Cas d'usages","index":0,"n_rows":34,"n_cols":16,"rows_kept":34,"cut":false,"hidden":false,"merged":[[2,2,2,3],[1,2,1,3],[1,4,1,7],[2,4,2,7],[3,4,3,7],[3,2,3,3],[4,2,4,3],[4,4,4,7],[6,2,6,8],[29,1,31,1],[14,1,28,1],[10,1,13,1]]}
[]
[null,null,"Intervenant"]
[null,null,"Rôle",null,"Architecte"]
[null,null,"Responsable de la démarche TIM CIM BIM dans l'organisation"]
[null,null,"Mail de contact"]
[]
[null,null,"Veuillez choisir ici les cas d'usages mis en place dans le cadre de l'opération et remplir le niveau de maturité pour ces mêmes cas"]
[]
[null,null,"ID","Cas d’usages","Programmer","Concevoir","Exécuter","Gérer","Définition","TIM CIM BIM","Cas d'usage mis en place ?","Niveau de maturité (entre 0 et 5)",null,"Niveau de maturité","Description","Plus de détails ici"]
[null,null,"00","Qualité architecturale",null,null,null,null,"Processus durant lequel la maquette numérique (urbaine) est utilisée afin de contrôler la qualité architecturale et urbaine du projet. Les prescriptions et objectifs de ce cas d'usage sont décrits dans l'onglet correspondant (Vert).\n[CAS D'USAGE OBLIGATOIRE]","TIM CIM BIM","OUI",null,null,"NC","Non concerné"]
[null,"ETUDE PREALABLE / DIAGNOSTIC TERRITOIRE","01","Analyse préalable  ","x",null,null,null,"Processus durant lequel une brève analyse de l'aire concernée est menée, grâce notamment à la réalisation d'une maquette urbaine ou territoriale succincte. Cette maquette s'appuiera principalement sur des données publiques et permettra cette analyse préalable.","TIM CIM","NON","NC",null,0,"Aucune expérience ou compétence dans ce cas d'usage"]
[null,null,"02","Programmation","x",null,null,null,"Processus durant lequel un programme de construction ou d'aménagement issu des besoins peut être défini, analysé, et utilisé en lien avec la (les) maquette(s) numérique(s) pour évaluer les performances du projet en cours ou réalisé. (analyse des exigences spatiales, contrôle de l’adéquation entre projet conçu et programme ...). L'analyse des données territoriales issues de la maquette peut servir à la définition plus précise de ces besoins","TIM CIM BIM","NON","NC",null,1,"Quelques expériences passées (sur des projets pilotes) ou en cours avec des compétences préalables partielles ou théoriques"]
[null,null,"03","Co construction du projet",null,null,null,null,"Processus durant lequel la maquette numérique urbaine est utilisée pour organiser des ateliers de co-constructruction du projet avec les différentes parties du projet et notamment avec les habitants du quartier (ou ville). Cela nécessite l'utlisation d'une maquette numérique urbaine pouvant présenter des scénarios multiples pour le projet à venir.","TIM CIM","NON","NC",null,2,"Cas d'usage déjà mis en place sur plusieurs projets avec un accompagnement externe"]
[null,null,"04","Modélisation du site environnant (existant)","x","x",null,null,"Processus concernant l’acquisition et le traitement de données sous forme de maquettes numériques décrivant l’environnement existant d’un projet. Dans ce cadre de projet urbain ou territorial, il sera nécessaire de modéliser au mieux le site existant, avec des relevés précis par scan ou photogrammétrie par exemple.","TIM CIM","NON","NC",null,3,"Cas d'usage mis en place dans plusieurs projets avec quelques précédures partielles mises en palce"]
[null,"CONCEPTION ET REALISATION","05","Diagnostic contextuel\nEtude territoriale de l'existant","x","x",null,null,"Processus durant lequel l'utilisation des données issues de la maquette numérique permette la réalisation d'une étude urbaine ou territoriale. Il s'agit ici d'établir une étude portant sur l'existant et non sur l'impact futur du projet. Les informations sortantes peuvent être intégrées à la maquette pour des utilisations postérieures.","TIM CIM","NON","NC",null,4,"Cas d'usage maîtrisé et mis en place régulièrement. Des procédures ont été mises en place dans le processus de travail"]
[null,null,"06","Modélisation du projet","x","x","x",null,"Processus de développement de maquettes numériques contenant des informations utilisables potentiellement tout au long du cycle de vie de l’ouvrage et du site. (production de maquettes numériques architecturales, structurelles, par corps d’état technique, paysagères, voiries...). ","TIM CIM BIM","NON","NC",null,5,"Cas d'usage maîtrisé et mis en place régulièrement avec une formalisation et une amélioration continue des procédures. Il est totalement intégré au processus de travail"]
[null,null,"07","Concertation externe avec les intervenants (usagers notamment)","x","x",null,null,"Processus durant lequel la maîtrise d'oeuvre, par le biais de la maquette numérique et des éléments de communication liés (voir cas n°20) réalise une concertation avec d'autres intervenants. Ce processus permettra de mettre en avant les contraintes et objectifs du projet et d'expliquer au mieux les enjeux à la maîtrise d'ouvrage et/ou aux usagers futurs et présents. On utilise alors la maquette comme un outil d'aide à la décision","TIM CIM BIM","NON","NC"]
[null,null,"08","Revues de projet","x","x","x",null,"Processus dans lequel les parties intéressées s’approprient des maquettes numériques en vue de la validation de décisions lors de la conception du projet.","TIM CIM BIM","NON","NC"]
[null,null,"09","Production de livrables","x","x","x","x","Processus dans lequel la maquette numérique est utilisée pour produire des livrables (plans, coupes, élévations, vues 3D, descriptifs, quantitatifs, nomenclatures, vidéos, fichiers pour la fabrication de maquettes, etc.)","TIM CIM BIM","NON","NC"]
[null,null,"10","Evaluation de performances du projet",null,"x","x","x","Processus d’utilisation de données issues de maquette(s) numérique(s) comme entrée pour la réalisation de simulations et analyses à l'echelle du terrtoire (circulation, solaire, éolien…) comme à l'échelle du bâtiment (thermique, structure…)","TIM CIM BIM","NON","NC"]
[null,null,"11","Etudes des clash (conception et chantier)","x","x","x",null,"Processus par lequel les logiciels de détection de collision sont utilisés en complément des autres processus de revue de projet. Le but étant de prévenir les conflits entre éléments d’un ou plusieurs modèles métiers.","BIM","NON","NC"]
[null,null,"12","Contrôle du modèle et de la donnée","x","x","x","x","Processus durant lequel la maquette numérique est soumise à un audit en vue de contrôler la qualité de sa modélisation (géométrie) mais aussi de l'exactitude de sa donnée. Ce cas d'usage est primordial pour assurer la pérennité de la donnée.","BIM","NON","NC"]
[null,null,"13","Réalisation de quantitatifs","x","x","x","x","Processus d’extraction à partir de maquettes numériques de base de données alphanumérique structurée permettant de regrouper des quantités par type d’ouvrage et valeurs significatives. On pensera notamment à la nature des sols et revêtements pour la partie aménagement urbain.","BIM","NON","NC"]
[null,null,"14","Conception de systèmes constructifs",null,"x","x",null,"Processus durnat lequel la maquette numérique est utliséee pour optimiser la conception de systèmes constructifs (création de modules, gestion des chutes de matériaux….)","BIM","NON","NC"]
[null,null,"15","Phasage du chantier / Planification / aménagement",null,"x","x",null,"Processus dans lequel un modèle numérique 3D est associé à un planning. La dimension temps est utilisée pour planifier la phase d’exécution d’un projet de rénovation, de construction ou de déconstruction. On pourra utiliser la maquette numérique pour illustrer et créer phasage.","CIM BIM","NON","NC"]
[null,null,"16","Permis de construire, Permis d'aménager",null,"x",null,null,"Processus durant lequel la maquette est utilisée pour la contruction du dépôt du permis de construire ou d'aménager (simulation du projet, études du contexte…). On pourra faire évoluer ce cas d'usage avec une estimation précise des travaux dès le dépôt du permis.","CIM BIM","NON","NC"]
[null,null,"17","Préparation de chantier (ouvrages provisoires, logistique…)",null,"x","x",null,"Processus par lequel la maquette numérique est utilisée pour concevoir et anticiper la mise en œuvre du chantier (PIC numérique, installation chantier, ouvrages provisoires…). Dans le cadre d'un projet urbain, celle-ci pourra servir pour prévoir des aménagements routiers ou urbains temporaires en vue de la réalisation du chantier.","CIM BIM","NON","NC"]
[null,null,"18","Préfabrication",null,"x","x",null,"processus durant lequel la maquette numérique sert directement à la préparation de la préfabrication de pièces ou systèmes constructifs du bâtiment.","BIM","NON","NC"]
[null,null,19,"Réception des ouvrages et Consolidation des dossiers des ouvrages exécutés numériques",null,"x","x",null,"Processus utilisé pour actualiser la maquette numérique et sa documentation en vue d’obtenir un modèle “tel que construit” de l’ouvrage (DOE numérique, “carte vitale” de l’ouvrage....). La maquette pourra notamment servir de support à la mise à jour des documents existants (plan de quartier, emplacement des réseaux...)","BIM","NON","NC"]
[null,"EXPLOITATION",20,"Conception et réalisation d'une maquette numérique de gestion",null,null,null,"x","Processus durant lequel une conception et/ou une réalisation d'une maquette numérique de gestion par recueil et numérisation d'informations et données territoriales ou patrimoniales existantes (plans, relevés géomètres, scanner etc....) est effectuée en vue de la maintenance informatisée de l'ouvrage","BIM","NON","NC"]
[null,null,"21","Plan prévisionnel de maintenance",null,"x","x","x","Processus par lequel la maquette numérique est utilisée pour réaliser un plan de maintenance prévisionnel en vue d'une analyse des coûts et charges futurs. On pourra distinguer un plan prévisionnel de maintenance pour les aménagements urbains et pour les bâiments construits ou rénovés.","CIM BIM","NON","NC"]
[null,null,"22","Gestion des ouvrages et des équipements par gestionnaire",null,null,null,"x","Processus par lequel le système de gestion et de maintenance (GMAO) du site ou du territoire est lié à un modèle TIM-CIM-BIM  “tel que construit” des ouvrages et équipements, de manière bi-directionnelle. Les informations sont mises à jour en cas de modification, et servent la gestion opérationnelle et maintenance préventive.","TIM CIM BIM","NON","NC"]
[null,null,"23","Rétribution de données dans une base de données publique",null,"x","x","x","Processus dans lequel chaque auteur de données, qui s'y est engagé au préalable, rétribue sur une plateforme publique (dans le cadre d'un projet d'améngament urbain) à définir la donnée qu'il a créée, modifiée, supprimée durant le projet. On désignera au sein de la maitrise d'œuvre ou de l'entreprise générale, un acteur succeptible de rassembler cette donnée et de l'uniformiser.","TIM CIM","NON","NC"]
[null,null,"24","Communication de projet","x","x","x","x","Processus dans lequel la maquette numérique est utilisée pour présenter le futur projet à des personnes qui ne sont pas nécessairement habituées à interpréter des plans ou documents techniques (membres d’un jury, futurs occupants,...).Elle aide à la compréhension du projet, et à la perception des espaces intérieurs et extérieurs.","TIM CIM BIM","NON","NC"]

{"sheet":"Qualité Architecturale","index":1,"n_rows":18,"n_cols":6,"rows_kept":18,"cut":false,"hidden":false,"merged":[[15,1,17,1],[15,2,17,2],[4,1,6,1],[4,2,6,2],[9,1,12,1],[9,2,12,2],[1,1,1,5]]}
[null,"Retour à la page d'accueil"]
[null,"Qualité urbaine et architecturale"]
[]
[null,null,null,null,"Objectif","Atteint"]
[null,"Contexte local","Prise en compte du contexte urbain local","Etude urbaine","Réalisation d'une étude urbaine exhaustive et intégration des différents éléments dans la maquette numérique urbaine (transport, POI, trames…)"]
[null,null,null,"Etude historique","Réalisation d'une étude historique du contexte et intégration des différents éléments dans la maquette numérique urbaine (axes, noyaux...)"]
[null,null,null,"Etude architecturale","Réalisation d'une étude architecturale de l'ensemble bâti du contexte urbain. Insertion de références ou images au sein de la maquette numérique"]
[]
[]
[null,"Conception bioclimatique","Prise en compte du contexte naturel","Ensoleillement","85% des locaux avec un ensolleillement supérieur à 4h par jour (au 21 juin)"]
[null,null,null,"Eolien","Minimiser au maximum la création d'inconfort lié au vent (voir échelle de confort lié au vent du CSTB)"]
[null,null,null,"Acoustique","80% de locaux avec un bruit inférieur à 45 dB(A)\nMéthode calcul (CNOSSOS-EU)"]
[null,null,null,"Confort thermique","Minimiser la création d'îlots de chaleur en favorisant l'aération des espaces extérieurs et l'insertion de végétation"]
[]
[]
[null,"Matérialité","Insertion de matériaux nobles au sein du projet avec prise en compte des ressources locales","Présence de matériaux géosourcé ou bio sourcé","Une quantité significative de matériaux sont des matériaux biosourcés ou géosourcés"]
[null,null,null,"Matériaux nobles utilisés ","30% de la surface de façade minimum - Baies comprises"]
[null,null,null,"Utilisation de matériaux locaux","Une quantité significative de matériaux provient de la région (<150km)"]

{"sheet":"Maturité&Casdusages","index":2,"n_rows":30,"n_cols":11,"rows_kept":30,"cut":false,"hidden":false,"merged":[[1,1,1,2],[4,5,4,10],[6,1,9,1],[10,1,24,1],[25,1,27,1]]}
[]
[null,"Retour à la page d'accueil"]
[]
[]
[null,null,null,null,null,"Niveau de maturité"]
[null,null,"ID","Cas d’usages","Description","Absente (0)    ","Initiale (1)       ","Définie (2)     ","Gérée (3)      ","Intégrée (4)     ","Optimisée (5)"]
[null,"ETUDE PREALABLE / DIAGNOSTIC TERRITOIRE","01","Analyse préalable ","Processus durant lequel une brève analyse de l'aire concernée est menée, grâce notamment à la réalisation d'une maquette urbaine ou territoriale succincte. Cette maquette s'appuiera principalement sur des données publiques et permettra cette analyse préalable.","Aucune expérience ou compétence dans ce cas d'usage","Nous avons déjà travaillé brièvement sur une maquette numérique urbaine pour faire une analyse urbaine préalable sans être à l'origine ou sans y ajouter de donnée. Rôle d'observateur","Nous avons travaillé sur une ou des maquettes numériques urbaines afin d'établir quelques analyses urbaines préalables sans en être l'auteur","Nous travaillons régulièrement à l'aide de maquette numériques urbaines pour effectuer des analyses urbaines préalables en y intégrant des données provenant de plusieurs sources","Nous travaillons systématiquement à l'aide de maquette numériques urbaines afin d'établir les analyses urbaines préalables en y intégrant des données de plusieurs sources selon des procédures mises en place pour notre processus de travail","Nous travaillons systématiquement à l'aide de maquette numériques urbaines afin d'établir les analyses urbaines préalables en y intégrant des données de plusieurs sources selon des procédures mises en place pour notre processus de travail que nous optimisons à chaque projet"]
[null,null,"02","Programmation","Processus durant lequel un programme de construction ou d'aménagement issu des besoins peut être défini, analysé, et utilisé en lien avec la (les) maquette(s) numérique(s) pour évaluer les performances du projet en cours ou réalisé. (analyse des exigences spatiales, contrôle de l’adéquation entre projet conçu et programme ...). L'analyse des données territoriales issues de la maquette peut servir à la définition plus précise de ces besoins","Aucune expérience ou compétence dans ce cas d'usage","Nous avons déjà travaillé brièvement sur une maquette numérique urbaine pour aider à la programmation du projet sans être à l'origine ou sans y ajouter de donnée. Rôle d'observateur","Nous avons travaillé sur une ou des maquettes numériques urbaines afin d'aider à la programmation du projet sans en être l'auteur","Nous travaillons régulièrement à l'aide de maquette numériques urbaines pour aider à la programmation du projet en y intégrant des données provenant de plusieurs sources","Nous travaillons systématiquement à l'aide de maquette numériques urbaines afin d'aider à la programmation du projet en y intégrant des données de plusieurs sources selon des procédures mises en place pour notre processus de travail","Nous travaillons systématiquement à l'aide de maquette numériques urbaines afin d'aider à la programmation du projet en y intégrant des données de plusieurs sources selon des procédures mises en place pour notre processus de travail que nous optimisons à chaque projet"]
[null,null,"03","Co construction du projet","Processus durant lequel la maquette numérique urbaine est utilisée pour organiser des ateliers de co-constructruction du projet avec les différentes parties du projet et notamment avec les habitants du quartier (ou ville). Cela nécessite l'utilisation d'une maquette numérique urbaine pouvant présenter des scénarios multiples pour le projet à venir.","Aucune expérience ou compétence dans ce cas d'usage","Nous avons déjà travaillé brièvement sur une maquette numérique urbaine pour aider à la co-construction du projet sans être à l'origine ou sans y ajouter de donnée. Rôle d'observateur","Nous avons travaillé sur une ou des maquettes numériques urbaines afin d'aider à la co-construction du projet sans en être l'auteur","Nous travaillons régulièrement à l'aide de maquette numériques urbaines pour aider à la co-construction du projet en y intégrant des données provenant de plusieurs sources","Nous travaillons systématiquement à l'aide de maquette numériques urbaines afin d'aider à la co-construction du projets en y intégrant des données de plusieurs sources selon des procédures mises en place pour notre processus de travail","Nous travaillons systématiquement à l'aide de maquette numériques urbaines afin d'aider à la co-construction du projet en y intégrant des données de plusieurs sources selon des procédures mises en place pour notre processus de travail que nous optimisons à chaque projet"]
[null,null,"04","Modélisation du site environnant (existant)","Processus concernant l’acquisition et le traitement de données sous forme de maquettes numériques décrivant l’environnement existant d’un projet. Dans ce cadre de projet urbain ou territorial, il sera nécessaire de modéliser au mieux le site existant, avec des relevés précis par scan ou photogrammétrie par exemple.","Aucune expérience ou compétence dans ce cas d'usage","Nous avons déjà travaillé brièvement sur une maquette numérique urbaine comportant une modélisation de l'existant sans en être l'auteur. Rôle d'observateur","Nous avons travaillé sur une ou des maquettes numériques urbaines comportant une modélisation de l'existant sans en être l'auteur","Nous travaillons régulièrement à l'aide de maquette numériques urbaines en y intégrant parfois l'existant à partir de données provenant de plusieurs sources","Nous travaillons à l'aide de maquettes numériques urbaines en y intégrant systématiquement une modélisation de l'existant à partir des données de plusieurs sources selon des procédures mises en place pour notre processus de travail","Nous travaillons à l'aide de maquettes numériques urbaines en y intégrant systématiquement une modélisation de l'existant à partir des données de plusieurs sources selon des procédures mises en place pour notre processus de travail"]
[null,"CONCEPTION ET REALISATION","05","Diagnostic contextuel\nEtude territoriale de l'existant","Processus durant lequel l'utilisation des données issues de la maquette numérique permette la réalisation d'une étude urbaine ou territoriale. Il s'agit ici d'établir une étude portant sur l'existant et non sur l'impact futur du projet. Les informations sortantes peuvent être intégrées à la maquette pour des utilisations postérieures.","Aucune expérience ou compétence dans ce cas d'usage","Nous avons déjà travaillé brièvement sur une maquette numérique urbaine pour faire des études urbaines sans être à l'origine ou sans y ajouter de donnée. Rôle d'observateur","Nous avons travaillé sur une ou des maquettes numériques urbaines afin d'établir quelques études urbaines sans en être l'auteur","Nous travaillons régulièrement à l'aide de maquette numériques urbaines pour effectuer des études urbaines en y intégrant des données provenant de plusieurs sources","Nous travaillons systématiquement à l'aide de maquette numériques urbaines afin d'établir les études urbaines en y intégrant des données de plusieurs sources selon des procédures mises en place pour notre processus de travail","Nous travaillons systématiquement à l'aide de maquette numériques urbaines afin d'établir les études urbaines en y intégrant des données de plusieurs sources selon des procédures mises en place pour notre processus de travail que nous optimisons à chaque projet"]
[null,null,"06","Modélisation du projet","Processus de développement de maquettes numériques contenant des informations utilisables potentiellement tout au long du cycle de vie de l’ouvrage et du site. (production de maquettes numériques architecturales, structurelles, par corps d’état technique, paysagères, voiries...). ","Aucune expérience ou compétence dans ce cas d'usage","Nous avons déjà travaillé brièvement sur une maquette numérique comportant une modélisation sans être à l'origine ou sans y ajouter de donnée. Rôle d'observateur","Nous avons travaillé sur une ou des maquettes numériques comportant une modélisation du projet sans en être l'auteur","Nous travaillons régulièrement à l'aide de maquette numériques comportant une modélisation du projet que nous avons réalisé partiellement ou entièrement","Nous travaillons systématiquement à l'aide de maquette numériques comportant une modélisation du projet que nous avons réalisé selon des procédures mises en place pour notre processus de travail","Nous travaillons systématiquement à l'aide de maquette numériques comportant une modélisation du projet que nous avons réalisé selon des procédures mises en place pour notre processus de travail que nous optimisons à chaque projet"]
[null,null,"07","Concertation externe avec les intervenants (usagers notamment)","Processus durant lequel la maîtrise d'œuvre, par le biais de la maquette numérique et des éléments de communication liés (voir cas n°20) réalise une concertation avec d'autres intervenants. Ce processus permettra de mettre en avant les contraintes et objectifs du projet et d'expliquer au mieux les enjeux à la maîtrise d'ouvrage et/ou aux usagers futurs et présents. On utilise alors la maquette comme un outil d'aide à la décision","Aucune expérience ou compétence dans ce cas d'usage","Nous avons déjà utilisé brièvement une maquette numérique pour une concertation avec les différents intervenants de l'opération sans en être l'auteur","Nous avons travaillé sur une ou des maquettes numériques pour une concertation avec les différents intervenants de l'opération sans en être l'auteur","Nous travaillons régulièrement à l'aide de maquettes numériques pour une concertation avec les différents intervenants de l'opération que nous avons réalisé partiellement ou entièrement","Nous travaillons systématiquement à l'aide maquette numériques pour une concertation avec les différents intervenants de l'opération que nous avons réalisé selon des procédures mises en place dans notre processus de travail","Nous travaillons  systématiquement à l'aide maquette numériques pour une concertation avec les différents intervenants de l'opération que nous avons réalisé selon des procédures mises en place dans notre processus de travail que nous optimisons à chaque projet"]
[null,null,"08","Revues de projet","Processus dans lequel les parties intéressées s’approprient des maquettes numériques en vue de la validation de décisions lors de la conception du projet.","Aucune expérience ou compétence dans ce cas d'usage","Nous avons déjà utilisé brièvement une maquette numérique pour effectuer des revues de projet sans en être l'auteur","Nous avons travaillé sur une ou des maquettes numériques pour effectuer des revues de projet sans en être l'auteur","Nous travaillons régulièrement à l'aide de maquettes numériques pour effectuer des revues de projet que nous avons réalisé partiellement ou entièrement","Nous travaillons systématiquement à l'aide maquette numériques pour effectuer des revues de projet que nous avons réalisé selon des procédures mises en place dans notre processus de travail","Nous travaillons  systématiquement à l'aide maquette numériques pour effectuer des revues de projet que nous avons réalisé selon des procédures mises en place dans notre processus de travail que nous optimisons à chaque projet"]
[null,null,"09","Production de livrables","Processus dans lequel la maquette numérique est utilisée pour produire des livrables (plans, coupes, élévations, vues 3D, descriptifs, quantitatifs, nomenclatures, vidéos, fichiers pour la fabrication de maquettes, etc.)","Aucune expérience ou compétence dans ce cas d'usage","Nous avons déjà utilisé brièvement une maquette numérique pour la production de livrables sans en être l'auteur","Nous avons travaillé sur une ou des maquettes numériques pour la production de livrables sans en être l'auteur","Nous travaillons régulièrement à l'aide de maquettes numériques pour la production de livrables que nous avons réalisé partiellement ou entièrement","Nous travaillons systématiquement à l'aide maquette numériques pour la production de livrables que nous avons réalisé selon des procédures mises en place dans notre processus de travail","Nous travaillons  systématiquement à l'aide maquette numériques pour la production de livrables que nous avons réalisé selon des procédures mises en place dans notre processus de travail que nous optimisons à chaque projet"]
[null,null,"10","Evaluation de performances du projet","Processus d’utilisation de données issues de maquette(s) numérique(s) comme entrée pour la réalisation de simulations et analyses à l'échelle du territoire (circulation, solaire, éolien…) comme à l'échelle du bâtiment (thermique, structure…)","Aucune expérience ou compétence dans ce cas d'usage","Nous avons déjà utilisé brièvement une maquette numérique pour évaluer les performances du projet sans en être l'auteur","Nous avons travaillé sur une ou des maquettes numériques pour évaluer les performances du projet sans en être l'auteur","Nous travaillons régulièrement à l'aide de maquettes numériques pour évaluer les performances du projet que nous avons réalisé partiellement ou entièrement","Nous travaillons systématiquement à l'aide maquette numériques pour évaluer les performances du projet que nous avons réalisé selon des procédures mises en place dans notre processus de travail","Nous travaillons  systématiquement à l'aide maquette numériques pour évaluer les performances du projet que nous avons réalisé selon des procédures mises en place dans notre processus de travail que nous optimisons à chaque projet"]
[null,null,"11","Etudes des clash (conception et chantier)","Processus par lequel les logiciels de détection de collision sont utilisés en complément des autres processus de revue de projet. Le but étant de prévenir les conflits entre éléments d’un ou plusieurs modèles métiers.","Aucune expérience ou compétence dans ce cas d'usage","Nous avons déjà utilisé brièvement une maquette numérique pour effectuer une étude de coordination (clash détection) sans en être l'auteur","Nous avons travaillé sur une ou des maquettes numériques pour effectuer une étude de coordination (clash détection) sans en être l'auteur","Nous travaillons régulièrement à l'aide de maquettes numériques pour effectuer une étude de coordination (clash détection) que nous avons réalisé partiellement ou entièrement","Nous travaillons systématiquement à l'aide maquette numériques pour effectuer une étude de coordination (clash détection) que nous avons réalisé selon des procédures mises en place dans notre processus de travail","Nous travaillons  systématiquement à l'aide maquette numériques pour effectuer une étude de coordination (clash détection) que nous avons réalisé selon des procédures mises en place dans notre processus de travail que nous optimisons à chaque projet"]
[null,null,"12","Contrôle du modèle et de la donnée","Processus durant lequel la maquette numérique est soumise à un audit en vue de contrôler la qualité de sa modélisation (géométrie) mais aussi de l'exactitude de sa donnée. Ce cas d'usage est primordial pour assurer la pérennité de la donnée.","Aucune expérience ou compétence dans ce cas d'usage","Nous avons déjà utilisé brièvement une maquette numérique pour contrôler les données intégrées sans en être l'auteur","Nous avons travaillé sur une ou des maquettes numériques pour contrôler les données intégrées sans en être l'auteur","Nous travaillons régulièrement à l'aide de maquettes numériques pour contrôler les données intégrées que nous avons réalisé partiellement ou entièrement","Nous travaillons systématiquement à l'aide maquette numériques pour contrôler les données intégrées que nous avons réalisé selon des procédures mises en place dans notre processus de travail","Nous travaillons  systématiquement à l'aide maquette numériques pour contrôler les données intégrées que nous avons réalisé selon des procédures mises en place dans notre processus de travail que nous optimisons à chaque projet"]
[null,null,"13","Réalisation de quantitatifs","Processus d’extraction à partir de maquettes numériques de base de données alphanumérique structurée permettant de regrouper des quantités par type d’ouvrage et valeurs significatives. On pensera notamment à la nature des sols et revêtements pour la partie aménagement urbain.","Aucune expérience ou compétence dans ce cas d'usage","Nous avons déjà utilisé brièvement une maquette numérique pour réaliser des métrés ou quantitatifs du projet sans en être l'auteur","Nous avons travaillé sur une ou des maquettes numériques pour réaliser des métrés ou quantitatifs du projet sans en être l'auteur","Nous travaillons régulièrement à l'aide de maquettes numériques pour réaliser des métrés ou quantitatifs du projet que nous avons réalisé partiellement ou entièrement","Nous travaillons systématiquement à l'aide maquette numériques pour réaliser des métrés ou quantitatifs du projet que nous avons réalisé selon des procédures mises en place dans notre processus de travail","Nous travaillons  systématiquement à l'aide maquette numériques pour réaliser des métrés ou quantitatifs du projet que nous avons réalisé selon des procédures mises en place dans notre processus de travail que nous optimisons à chaque projet"]
[null,null,"14","Conception de systèmes constructifs","Processus durant lequel la maquette numérique est utilisée pour optimiser la conception de systèmes constructifs (création de modules, gestion des chutes de matériaux….)","Aucune expérience ou compétence dans ce cas d'usage","Nous avons déjà utilisé brièvement une maquette numérique pour aider à la conception de systèmes constructifs sans en être l'auteur","Nous avons travaillé sur une ou des maquettes numériques pour aider à la conception de systèmes constructifs sans en être l'auteur","Nous travaillons régulièrement à l'aide de maquettes numériques pour aider à la conception de systèmes constructifs que nous avons réalisé partiellement ou entièrement","Nous travaillons systématiquement à l'aide maquette numériques pour aider à la conception de systèmes constructifs que nous avons réalisé selon des procédures mises en place dans notre processus de travail","Nous travaillons  systématiquement à l'aide maquette numériques pour aider à la conception de systèmes constructifs que nous avons réalisé selon des procédures mises en place dans notre processus de travail que nous optimisons à chaque projet"]
[null,null,"15","Phasage du chantier / Planification / aménagement","Processus dans lequel un modèle numérique 3D est associé à un planning. La dimension temps est utilisée pour planifier la phase d’exécution d’un projet de rénovation, de construction ou de déconstruction. On pourra utiliser la maquette numérique pour illustrer et créer phasage.","Aucune expérience ou compétence dans ce cas d'usage","Nous avons déjà utilisé brièvement une maquette numérique pour préparer la phase chantier d'une opération sans en être l'auteur","Nous avons travaillé sur une ou des maquettes numériques pour préparer la phase chantier d'une opération sans en être l'auteur","Nous travaillons régulièrement à l'aide de maquettes numériques pour préparer la phase chantier d'une opération que nous avons réalisé partiellement ou entièrement","Nous travaillons systématiquement à l'aide maquette numériques pour préparer la phase chantier d'une opération que nous avons réalisé selon des procédures mises en place dans notre processus de travail","Nous travaillons  systématiquement à l'aide maquette numériques pour préparer la phase chantier d'une opération que nous avons réalisé selon des procédures mises en place dans notre processus de travail que nous optimisons à chaque projet"]
[null,null,"16","Permis de construire, Permis d'aménager","Processus durant lequel la maquette est utilisée pour la construction du dépôt du permis de construire ou d'aménager (simulation du projet, études du contexte…). On pourra faire évoluer ce cas d'usage avec une estimation précise des travaux dès le dépôt du permis.","Aucune expérience ou compétence dans ce cas d'usage","Nous avons déjà utilisé brièvement une maquette numérique pour établir le permis de construire ou d'aménager sans en être l'auteur","Nous avons travaillé sur une ou des maquettes numériques pour établir le permis de construire ou d'aménager sans en être l'auteur","Nous travaillons régulièrement à l'aide de maquettes numériques pour établir le permis de construire ou d'aménager que nous avons réalisé partiellement ou entièrement","Nous travaillons systématiquement à l'aide maquette numériques pour établir le permis de construire ou d'aménager que nous avons réalisé selon des procédures mises en place dans notre processus de travail","Nous travaillons  systématiquement à l'aide maquette numériques pour établir le permis de construire ou d'aménager que nous avons réalisé selon des procédures mises en place dans notre processus de travail que nous optimisons à chaque projet"]
[null,null,"17","Préparation de chantier (ouvrages provisoires, logistique…)","Processus par lequel la maquette numérique est utilisée pour concevoir et anticiper la mise en œuvre du chantier (PIC numérique, installation chantier, ouvrages provisoires…). Dans le cadre d'un projet urbain, celle-ci pourra servir pour prévoir des aménagements routiers ou urbains temporaires en vue de la réalisation du chantier.","Aucune expérience ou compétence dans ce cas d'usage","Nous avons déjà utilisé brièvement une maquette numérique pour préparer l'organisation technique du chantier sans en être l'auteur","Nous avons travaillé sur une ou des maquettes numériques pour préparer l'organisation technique du chantier sans en être l'auteur","Nous travaillons régulièrement à l'aide de maquettes numériques pour préparer l'organisation technique du chantier que nous avons réalisé partiellement ou entièrement","Nous travaillons systématiquement à l'aide maquette numériques pour préparer l'organisation technique du chantier que nous avons réalisé selon des procédures mises en place dans notre processus de travail","Nous travaillons  systématiquement à l'aide maquette numériques pour préparer l'organisation technique du chantier que nous avons réalisé selon des procédures mises en place dans notre processus de travail que nous optimisons à chaque projet"]
[null,null,"18","Préfabrication","processus durant lequel la maquette numérique sert directement à la préparation de la préfabrication de pièces ou systèmes constructifs du bâtiment.","Aucune expérience ou compétence dans ce cas d'usage","Nous avons déjà utilisé brièvement une maquette numérique pour aider à la préfabrication des éléments constructifs sans en être l'auteur","Nous avons travaillé sur une ou des maquettes numériques pour aider à la préfabrication des éléments constructifs sans en être l'auteur","Nous travaillons régulièrement à l'aide de maquettes numériques pour aider à la préfabrication des éléments constructifs que nous avons réalisé partiellement ou entièrement","Nous travaillons systématiquement à l'aide maquette numériques pour aider à la préfabrication des éléments constructifs que nous avons réalisé selon des procédures mises en place dans notre processus de travail","Nous travaillons  systématiquement à l'aide maquette numériques pour aider à la préfabrication des éléments constructifs que nous avons réalisé selon des procédures mises en place dans notre processus de travail que nous optimisons à chaque projet"]
[null,null,"19","Réception des ouvrages et Consolidation des dossiers des ouvrages exécutés numériques","Processus utilisé pour actualiser la maquette numérique et sa documentation en vue d’obtenir un modèle “tel que construit” de l’ouvrage (DOE numérique, “carte vitale” de l’ouvrage....). La maquette pourra notamment servir de support à la mise à jour des documents existants (plan de quartier, emplacement des réseaux...)","Aucune expérience ou compétence dans ce cas d'usage","Nous avons déjà utilisé brièvement une maquette numérique pour effectuer la réception des ouvrages et la création des DOE sans en être l'auteur","Nous avons travaillé sur une ou des maquettes numériques pour effectuer la réception des ouvrages et la création des DOE sans en être l'auteur","Nous travaillons régulièrement à l'aide de maquettes numériques pour effectuer la réception des ouvrages et la création des DOE que nous avons réalisé partiellement ou entièrement","Nous travaillons systématiquement à l'aide maquette numériques pour effectuer la réception des ouvrages et la création des DOE que nous avons réalisé selon des procédures mises en place dans notre processus de travail","Nous travaillons  systématiquement à l'aide maquette numériques pour effectuer la réception des ouvrages et la création des DOE que nous avons réalisé selon des procédures mises en place dans notre processus de travail que nous optimisons à chaque projet"]
[null,"EXPLOITATION",20,"Conception et réalisation d'une maquette numérique de gestion","Processus durant lequel une conception et/ou une réalisation d'une maquette numérique de gestion par recueil et numérisation d'informations et données territoriales ou patrimoniales existantes (plans, relevés géomètres, scanner etc....) est effectuée en vue de la maintenance informatisée de l'ouvrage","Aucune expérience ou compétence dans ce cas d'usage","Nous avons déjà utilisé brièvement participer à la réalisation d'une maquette numérique de gestion sans en être l'auteur","Nous avons travaillé sur la conception une ou des maquettes numériques de gestion sans en être l'auteur","Nous travaillons régulièrement à la conception de maquettes numériques de gestion que nous avons réalisé partiellement ou entièrement","Nous travaillons systématiquement à l'aide maquette numériques pour effectuer la réception des ouvrages et la création des DOE que nous avons réalisé selon des procédures mises en place dans notre processus de travail","Nous travaillons systématiquement à la conception de maquettes de gestion que nous réalisons selon des procédures mises en place dans notre processus de travail que nous optimisons à chaque projet"]
[null,null,21,"Plan prévisionnel de maintenance","Processus par lequel la maquette numérique est utilisée pour réaliser un plan de maintenance prévisionnel en vue d'une analyse des coûts et charges futurs. On pourra distinguer un plan prévisionnel de maintenance pour les aménagements urbains et pour les bâtiments construits ou rénovés.","Aucune expérience ou compétence dans ce cas d'usage","Nous avons déjà utilisé brièvement une maquette numérique pour la création d'un plan prévisionnel de maintenance sans en être l'auteur","Nous avons travaillé sur une ou des maquettes numériques pour la création d'un plan prévisionnel de maintenance sans en être l'auteur","Nous travaillons régulièrement à l'aide de maquettes numériques pour la création d'un plan prévisionnel de maintenance que nous avons réalisé partiellement ou entièrement","Nous travaillons systématiquement à l'aide maquette numériques pour la création d'un plan prévisionnel de maintenance que nous avons réalisé selon des procédures mises en place dans notre processus de travail","Nous travaillons  systématiquement à l'aide maquette numériques pour la création d'un plan prévisionnel de maintenance que nous avons réalisé selon des procédures mises en place dans notre processus de travail que nous optimisons à chaque projet"]
[null,null,22,"Gestion des ouvrages et des équipements par gestionnaire","Processus par lequel le système de gestion et de maintenance (GMAO) du site ou du territoire est lié à un modèle TIM-CIM-BIM “tel que construit” des ouvrages et équipements, de manière bidirectionnelle. Les informations sont mises à jour en cas de modification, et servent la gestion opérationnelle et maintenance préventive.","Aucune expérience ou compétence dans ce cas d'usage","Nous avons déjà utilisé brièvement une maquette numérique pour gérer les ouvrages après leur livraison sans en être l'auteur","Nous avons travaillé sur une ou des maquettes numériques pour gérer les ouvrages après leur livraison sans en être l'auteur","Nous travaillons régulièrement à l'aide de maquettes numériques pour gérer les ouvrages après leur livraison que nous avons réalisé partiellement ou entièrement","Nous travaillons systématiquement à l'aide maquette numériques pour gérer les ouvrages après leur livraison que nous avons réalisé selon des procédures mises en place dans notre processus de travail","Nous travaillons  systématiquement à l'aide maquette numériques pour gérer les ouvrages après leur livraison que nous avons réalisé selon des procédures mises en place dans notre processus de travail que nous optimisons à chaque projet"]
[null,null,23,"Rétribution de données dans une base de données publique","Processus dans lequel chaque auteur de données, qui s'y est engagé au préalable, rétribue sur une plateforme publique (dans le cadre d'un projet d'aménagement urbain) à définir la donnée qu'il a créée, modifiée, supprimée durant le projet. On désignera au sein de la maitrise d'œuvre ou de l'entreprise générale, un acteur susceptible de rassembler cette donnée et de l'uniformiser.","Aucune expérience ou compétence dans ce cas d'usage","Nous avons déjà utilisé brièvement une maquette numérique pour  extraire de la donnée et la rétribuer dans une base de données externe sans en être l'auteur","Nous avons travaillé sur une ou des maquettes numériques pour  extraire de la donnée et la rétribuer dans une base de données externe sans en être l'auteur","Nous travaillons régulièrement à l'aide de maquettes numériques pour  extraire de la donnée et la rétribuer dans une base de données externe que nous avons réalisé partiellement ou entièrement","Nous travaillons systématiquement à l'aide maquette numériques pour  extraire de la donnée et la rétribuer dans une base de données externe que nous avons réalisé selon des procédures mises en place dans notre processus de travail","Nous travaillons  systématiquement à l'aide maquette numériques pour  extraire de la donnée et la rétribuer dans une base de données externe que nous avons réalisé selon des procédures mises en place dans notre processus de travail que nous optimisons à chaque projet"]
[null,null,24,"Communication de projet","Processus dans lequel la maquette numérique est utilisée pour présenter le futur projet à des personnes qui ne sont pas nécessairement habituées à interpréter des plans ou documents techniques (membres d’un jury, futurs occupants,...).Elle aide à la compréhension du projet, et à la perception des espaces intérieurs et extérieurs.","Aucune expérience ou compétence dans ce cas d'usage","Nous avons déjà utilisé brièvement une maquette numérique pour communiquer autour du projet sans en être l'auteur","Nous avons travaillé sur une ou des maquettes numériques pour communiquer autour du projet sans en être l'auteur","Nous travaillons régulièrement à l'aide de maquettes numériques pour communiquer autour du projet que nous avons réalisé partiellement ou entièrement","Nous travaillons systématiquement à l'aide maquette numériques pour communiquer autour du projet que nous avons réalisé selon des procédures mises en place dans notre processus de travail","Nous travaillons  systématiquement à l'aide maquette numériques pour communiquer autour du projet que nous avons réalisé selon des procédures mises en place dans notre processus de travail que nous optimisons à chaque projet"]

{"sheet":"Analyse qualitative","index":3,"n_rows":10,"n_cols":10,"rows_kept":10,"cut":false,"hidden":false,"merged":[[1,1,1,9]]}
[null,"Retour à la page d'accueil"]
[null,"Analyse qualitative des gains"]
[]
[null,null,"Accès au marché","Partage d'idée","Communication","Processus de décision","Gestion de l'information","Qualité des résultats produits","Acceptabilité du projet","Image de marque"]
[null,"Programmer"]
[null,"Concevoir"]
[null,"Exécuter"]
[null,"Gérer et maintenir"]
[]
[null,"TOTAUX",{"$f":"IFERROR(AVERAGE(C5:C8),\"NC\")","v":"NC"},{"$f":"IFERROR(AVERAGE(D5:D8),\"NC\")","v":"NC"},"NC","NC","NC","NC","NC","NC"]

{"sheet":"Coût fixes","index":4,"n_rows":16,"n_cols":3,"rows_kept":16,"cut":false,"hidden":false,"merged":[[1,1,1,2]]}
[null,"Retour à la page d'accueil"]
[null,"Etude des coûts fixes"]
[]
[]
[null,null,"Coût HT en euros"]
[null,"Matériel",0]
[null,"Licence",0]
[null,"Maintenance",0]
[null,"Formation",0]
[null,"Espace physique dédié",0]
[null,"Recrutement spécifique",0]
[null,"Consultance",0]
[null,"Données spécifiques",0]
[null,"Autre",0]
[]
[null,"TOTAL",{"$f":"SUM(C6:C14)","v":0}]

{"sheet":"Analyse des gains directs","index":5,"n_rows":67,"n_cols":11,"rows_kept":67,"cut":false,"hidden":false,"merged":[[1,11,1,14],[66,1,66,2],[4,1,16,1],[18,1,37,1],[39,1,54,1],[56,1,64,1],[1,1,1,10]]}
[null,"Retour à la page d'accueil"]
[null,"Analyse quantitative des gains directs"]
[]
[]
[null,"PROGRAMMER","Utilisé ?","Code","Cas d'usage","Gain/perte de temps (jours)","Salaire journalier (euros)","Gain/Perte associés à l'économie de temps (euros)","Gains/pertes associés à l'économie de matériaux (euros)","Gains/pertes associés à l'économie de sous-traitance (euros)","TOTAL GAIN/PERTE"]
[null,null,{"$f":"IF(VLOOKUP(QA_PROG[[#This Row],[Cas d''usage]],CAS_USAGES[[Cas d’usages]:[Cas d''usage mis en place ?]],8,FALSE)=\"OUI\",\"X\",\"\")","v":""},{"$f":"_xlfn.CONCAT(\"P-\",_xlfn.XLOOKUP(QA_PROG[[#This Row],[Cas d''usage]],CAS_USAGES[Cas d’usages],CAS_USAGES[ID]))","v":"P-01"},"Analyse préalable  ",null,0,{"$f":"G6*F6","v":0},0,0,{"$f":"SUM(H6:J6)","v":0}]
[null,null,{"$f":"IF(VLOOKUP(QA_PROG[[#This Row],[Cas d''usage]],CAS_USAGES[[Cas d’usages]:[Cas d''usage mis en place ?]],8,FALSE)=\"OUI\",\"X\",\"\")","v":""},{"$f":"_xlfn.CONCAT(\"P-\",_xlfn.XLOOKUP(QA_PROG[[#This Row],[Cas d''usage]],CAS_USAGES[Cas d’usages],CAS_USAGES[ID]))","v":"P-02"},"Programmation",null,0,{"$f":"G7*F7","v":0},0,0,{"$f":"SUM(H7:J7)","v":0}]
[null,null,{"$f":"IF(VLOOKUP(QA_PROG[[#This Row],[Cas d''usage]],CAS_USAGES[[Cas d’usages]:[Cas d''usage mis en place ?]],8,FALSE)=\"OUI\",\"X\",\"\")","v":""},{"$f":"_xlfn.CONCAT(\"P-\",_xlfn.XLOOKUP(QA_PROG[[#This Row],[Cas d''usage]],CAS_USAGES[Cas d’usages],CAS_USAGES[ID]))","v":"P-04"},"Modélisation du site environnant (existant)",null,0,0,0,0,0]
[null,null,{"$f":"IF(VLOOKUP(QA_PROG[[#This Row],[Cas d''usage]],CAS_USAGES[[Cas d’usages]:[Cas d''usage mis en place ?]],8,FALSE)=\"OUI\",\"X\",\"\")","v":""},{"$f":"_xlfn.CONCAT(\"P-\",_xlfn.XLOOKUP(QA_PROG[[#This Row],[Cas d''usage]],CAS_USAGES[Cas d’usages],CAS_USAGES[ID]))","v":"P-05"},"Diagnostic contextuel\nEtude territoriale de l'existant",null,0,0,0,0,0]
[null,null,{"$f":"IF(VLOOKUP(QA_PROG[[#This Row],[Cas d''usage]],CAS_USAGES[[Cas d’usages]:[Cas d''usage mis en place ?]],8,FALSE)=\"OUI\",\"X\",\"\")","v":""},{"$f":"_xlfn.CONCAT(\"P-\",_xlfn.XLOOKUP(QA_PROG[[#This Row],[Cas d''usage]],CAS_USAGES[Cas d’usages],CAS_USAGES[ID]))","v":"P-06"},"Modélisation du projet",null,null,0,0,0,0]
[null,null,{"$f":"IF(VLOOKUP(QA_PROG[[#This Row],[Cas d''usage]],CAS_USAGES[[Cas d’usages]:[Cas d''usage mis en place ?]],8,FALSE)=\"OUI\",\"X\",\"\")","v":""},{"$f":"_xlfn.CONCAT(\"P-\",_xlfn.XLOOKUP(QA_PROG[[#This Row],[Cas d''usage]],CAS_USAGES[Cas d’usages],CAS_USAGES[ID]))","v":"P-07"},"Concertation externe avec les intervenants (usagers notamment)",null,0,0,0,0,0]
[null,null,{"$f":"IF(VLOOKUP(QA_PROG[[#This Row],[Cas d''usage]],CAS_USAGES[[Cas d’usages]:[Cas d''usage mis en place ?]],8,FALSE)=\"OUI\",\"X\",\"\")","v":""},{"$f":"_xlfn.CONCAT(\"P-\",_xlfn.XLOOKUP(QA_PROG[[#This Row],[Cas d''usage]],CAS_USAGES[Cas d’usages],CAS_USAGES[ID]))","v":"P-08"},"Revues de projet",null,0,0,0,0,0]
[null,null,{"$f":"IF(VLOOKUP(QA_PROG[[#This Row],[Cas d''usage]],CAS_USAGES[[Cas d’usages]:[Cas d''usage mis en place ?]],8,FALSE)=\"OUI\",\"X\",\"\")","v":""},{"$f":"_xlfn.CONCAT(\"P-\",_xlfn.XLOOKUP(QA_PROG[[#This Row],[Cas d''usage]],CAS_USAGES[Cas d’usages],CAS_USAGES[ID]))","v":"P-09"},"Production de livrables",null,0,0,0,0,0]
[null,null,{"$f":"IF(VLOOKUP(QA_PROG[[#This Row],[Cas d''usage]],CAS_USAGES[[Cas d’usages]:[Cas d''usage mis en place ?]],8,FALSE)=\"OUI\",\"X\",\"\")","v":""},{"$f":"_xlfn.CONCAT(\"P-\",_xlfn.XLOOKUP(QA_PROG[[#This Row],[Cas d''usage]],CAS_USAGES[Cas d’usages],CAS_USAGES[ID]))","v":"P-11"},"Etudes des clash (conception et chantier)",null,0,0,0,0,0]
[null,null,{"$f":"IF(VLOOKUP(QA_PROG[[#This Row],[Cas d''usage]],CAS_USAGES[[Cas d’usages]:[Cas d''usage mis en place ?]],8,FALSE)=\"OUI\",\"X\",\"\")","v":""},{"$f":"_xlfn.CONCAT(\"P-\",_xlfn.XLOOKUP(QA_PROG[[#This Row],[Cas d''usage]],CAS_USAGES[Cas d’usages],CAS_USAGES[ID]))","v":"P-12"},"Contrôle du modèle et de la donnée",null,0,0,0,0,0]
[null,null,{"$f":"IF(VLOOKUP(QA_PROG[[#This Row],[Cas d''usage]],CAS_USAGES[[Cas d’usages]:[Cas d''usage mis en place ?]],8,FALSE)=\"OUI\",\"X\",\"\")","v":""},{"$f":"_xlfn.CONCAT(\"P-\",_xlfn.XLOOKUP(QA_PROG[[#This Row],[Cas d''usage]],CAS_USAGES[Cas d’usages],CAS_USAGES[ID]))","v":"P-13"},"Réalisation de quantitatifs",null,0,0,0,0,0]
[null,null,{"$f":"IF(VLOOKUP(QA_PROG[[#This Row],[Cas d''usage]],CAS_USAGES[[Cas d’usages]:[Cas d''usage mis en place ?]],8,FALSE)=\"OUI\",\"X\",\"\")","v":""},{"$f":"_xlfn.CONCAT(\"P-\",_xlfn.XLOOKUP(QA_PROG[[#This Row],[Cas d''usage]],CAS_USAGES[Cas d’usages],CAS_USAGES[ID]))","v":"P-24"},"Communication de projet",null,0,0,0,0,0]
[]
[null,"CONCEVOIR","Utilisé ?","Code","Cas d'usage","Gain/perte de temps (jours)","Salaire journalier (euros)","Gain/Perte associés à l'économie de temps (euros)","Gains/pertes associés à l'économie de matériaux (euros)","Gains/pertes associés à l'économie de sous-traitance (euros)","TOTAL GAIN/PERTE"]
[null,null,{"$f":"IF(VLOOKUP(QA_CONC[[#This Row],[Cas d''usage]],CAS_USAGES[[Cas d’usages]:[Cas d''usage mis en place ?]],8,FALSE)=\"OUI\",\"X\",\"\")","v":""},{"$f":"_xlfn.CONCAT(\"C-\",_xlfn.XLOOKUP(QA_CONC[[#This Row],[Cas d''usage]],CAS_USAGES[Cas d’usages],CAS_USAGES[ID]))","v":"C-04"},"Modélisation du site environnant (existant)",null,0,{"$f":"G20*F20","v":0},0,0,{"$f":"SUM(H20:J20)","v":0}]
[null,null,{"$f":"IF(VLOOKUP(QA_CONC[[#This Row],[Cas d''usage]],CAS_USAGES[[Cas d’usages]:[Cas d''usage mis en place ?]],8,FALSE)=\"OUI\",\"X\",\"\")","v":""},{"$f":"_xlfn.CONCAT(\"C-\",_xlfn.XLOOKUP(QA_CONC[[#This Row],[Cas d''usage]],CAS_USAGES[Cas d’usages],CAS_USAGES[ID]))","v":"C-05"},"Diagnostic contextuel\nEtude territoriale de l'existant",null,0,{"$f":"G21*F21","v":0},0,0,{"$f":"SUM(H21:J21)","v":0}]
[null,null,{"$f":"IF(VLOOKUP(QA_CONC[[#This Row],[Cas d''usage]],CAS_USAGES[[Cas d’usages]:[Cas d''usage mis en place ?]],8,FALSE)=\"OUI\",\"X\",\"\")","v":""},{"$f":"_xlfn.CONCAT(\"C-\",_xlfn.XLOOKUP(QA_CONC[[#This Row],[Cas d''usage]],CAS_USAGES[Cas d’usages],CAS_USAGES[ID]))","v":"C-06"},"Modélisation du projet",null,0,0,0,0,0]
[null,null,{"$f":"IF(VLOOKUP(QA_CONC[[#This Row],[Cas d''usage]],CAS_USAGES[[Cas d’usages]:[Cas d''usage mis en place ?]],8,FALSE)=\"OUI\",\"X\",\"\")","v":""},{"$f":"_xlfn.CONCAT(\"C-\",_xlfn.XLOOKUP(QA_CONC[[#This Row],[Cas d''usage]],CAS_USAGES[Cas d’usages],CAS_USAGES[ID]))","v":"C-07"},"Concertation externe avec les intervenants (usagers notamment)",null,0,0,0,0,0]
[null,null,{"$f":"IF(VLOOKUP(QA_CONC[[#This Row],[Cas d''usage]],CAS_USAGES[[Cas d’usages]:[Cas d''usage mis en place ?]],8,FALSE)=\"OUI\",\"X\",\"\")","v":""},{"$f":"_xlfn.CONCAT(\"C-\",_xlfn.XLOOKUP(QA_CONC[[#This Row],[Cas d''usage]],CAS_USAGES[Cas d’usages],CAS_USAGES[ID]))","v":"C-08"},"Revues de projet",null,0,0,0,0,0]
[null,null,{"$f":"IF(VLOOKUP(QA_CONC[[#This Row],[Cas d''usage]],CAS_USAGES[[Cas d’usages]:[Cas d''usage mis en place ?]],8,FALSE)=\"OUI\",\"X\",\"\")","v":""},{"$f":"_xlfn.CONCAT(\"C-\",_xlfn.XLOOKUP(QA_CONC[[#This Row],[Cas d''usage]],CAS_USAGES[Cas d’usages],CAS_USAGES[ID]))","v":"C-09"},"Production de livrables",null,0,0,0,0,0]
[null,null,{"$f":"IF(VLOOKUP(QA_CONC[[#This Row],[Cas d''usage]],CAS_USAGES[[Cas d’usages]:[Cas d''usage mis en place ?]],8,FALSE)=\"OUI\",\"X\",\"\")","v":""},{"$f":"_xlfn.CONCAT(\"C-\",_xlfn.XLOOKUP(QA_CONC[[#This Row],[Cas d''usage]],CAS_USAGES[Cas d’usages],CAS_USAGES[ID]))","v":"C-10"},"Evaluation de performances du projet",null,0,0,0,0,0]
[null,null,{"$f":"IF(VLOOKUP(QA_CONC[[#This Row],[Cas d''usage]],CAS_USAGES[[Cas d’usages]:[Cas d''usage mis en place ?]],8,FALSE)=\"OUI\",\"X\",\"\")","v":""},{"$f":"_xlfn.CONCAT(\"C-\",_xlfn.XLOOKUP(QA_CONC[[#This Row],[Cas d''usage]],CAS_USAGES[Cas d’usages],CAS_USAGES[ID]))","v":"C-11"},"Etudes des clash (conception et chantier)",null,0,0,0,0,0]
[null,null,{"$f":"IF(VLOOKUP(QA_CONC[[#This Row],[Cas d''usage]],CAS_USAGES[[Cas d’usages]:[Cas d''usage mis en place ?]],8,FALSE)=\"OUI\",\"X\",\"\")","v":""},{"$f":"_xlfn.CONCAT(\"C-\",_xlfn.XLOOKUP(QA_CONC[[#This Row],[Cas d''usage]],CAS_USAGES[Cas d’usages],CAS_USAGES[ID]))","v":"C-12"},"Contrôle du modèle et de la donnée",null,0,0,0,0,0]
[null,null,{"$f":"IF(VLOOKUP(QA_CONC[[#This Row],[Cas d''usage]],CAS_USAGES[[Cas d’usages]:[Cas d''usage mis en place ?]],8,FALSE)=\"OUI\",\"X\",\"\")","v":""},{"$f":"_xlfn.CONCAT(\"C-\",_xlfn.XLOOKUP(QA_CONC[[#This Row],[Cas d''usage]],CAS_USAGES[Cas d’usages],CAS_USAGES[ID]))","v":"C-13"},"Réalisation de quantitatifs",null,0,0,0,0,0]
[null,null,{"$f":"IF(VLOOKUP(QA_CONC[[#This Row],[Cas d''usage]],CAS_USAGES[[Cas d’usages]:[Cas d''usage mis en place ?]],8,FALSE)=\"OUI\",\"X\",\"\")","v":""},{"$f":"_xlfn.CONCAT(\"C-\",_xlfn.XLOOKUP(QA_CONC[[#This Row],[Cas d''usage]],CAS_USAGES[Cas d’usages],CAS_USAGES[ID]))","v":"C-14"},"Conception de systèmes constructifs",null,null,{"$f":"G30*F30","v":0},null,null,{"$f":"SUM(H30:J30)","v":0}]
[null,null,{"$f":"IF(VLOOKUP(QA_CONC[[#This Row],[Cas d''usage]],CAS_USAGES[[Cas d’usages]:[Cas d''usage mis en place ?]],8,FALSE)=\"OUI\",\"X\",\"\")","v":""},{"$f":"_xlfn.CONCAT(\"C-\",_xlfn.XLOOKUP(QA_CONC[[#This Row],[Cas d''usage]],CAS_USAGES[Cas d’usages],CAS_USAGES[ID]))","v":"C-15"},"Phasage du chantier / Planification / aménagement",null,0,0,0,0,0]
[null,null,{"$f":"IF(VLOOKUP(QA_CONC[[#This Row],[Cas d''usage]],CAS_USAGES[[Cas d’usages]:[Cas d''usage mis en place ?]],8,FALSE)=\"OUI\",\"X\",\"\")","v":""},{"$f":"_xlfn.CONCAT(\"C-\",_xlfn.XLOOKUP(QA_CONC[[#This Row],[Cas d''usage]],CAS_USAGES[Cas d’usages],CAS_USAGES[ID]))","v":"C-16"},"Permis de construire, Permis d'aménager",null,0,0,0,0,0]
[null,null,{"$f":"IF(VLOOKUP(QA_CONC[[#This Row],[Cas d''usage]],CAS_USAGES[[Cas d’usages]:[Cas d''usage mis en place ?]],8,FALSE)=\"OUI\",\"X\",\"\")","v":""},{"$f":"_xlfn.CONCAT(\"C-\",_xlfn.XLOOKUP(QA_CONC[[#This Row],[Cas d''usage]],CAS_USAGES[Cas d’usages],CAS_USAGES[ID]))","v":"C-17"},"Préparation de chantier (ouvrages provisoires, logistique…)",null,0,0,0,0,0]
[null,null,{"$f":"IF(VLOOKUP(QA_CONC[[#This Row],[Cas d''usage]],CAS_USAGES[[Cas d’usages]:[Cas d''usage mis en place ?]],8,FALSE)=\"OUI\",\"X\",\"\")","v":""},{"$f":"_xlfn.CONCAT(\"C-\",_xlfn.XLOOKUP(QA_CONC[[#This Row],[Cas d''usage]],CAS_USAGES[Cas d’usages],CAS_USAGES[ID]))","v":"C-16"},"Permis de construire, Permis d'aménager",null,null,{"$f":"G34*F34","v":0},null,null,{"$f":"SUM(H34:J34)","v":0}]
[null,null,{"$f":"IF(VLOOKUP(QA_CONC[[#This Row],[Cas d''usage]],CAS_USAGES[[Cas d’usages]:[Cas d''usage mis en place ?]],8,FALSE)=\"OUI\",\"X\",\"\")","v":""},{"$f":"_xlfn.CONCAT(\"C-\",_xlfn.XLOOKUP(QA_CONC[[#This Row],[Cas d''usage]],CAS_USAGES[Cas d’usages],CAS_USAGES[ID]))","v":"C-19"},"Réception des ouvrages et Consolidation des dossiers des ouvrages exécutés numériques",null,0,0,0,0,0]
[null,null,{"$f":"IF(VLOOKUP(QA_CONC[[#This Row],[Cas d''usage]],CAS_USAGES[[Cas d’usages]:[Cas d''usage mis en place ?]],8,FALSE)=\"OUI\",\"X\",\"\")","v":""},{"$f":"_xlfn.CONCAT(\"C-\",_xlfn.XLOOKUP(QA_CONC[[#This Row],[Cas d''usage]],CAS_USAGES[Cas d’usages],CAS_USAGES[ID]))","v":"C-21"},"Plan prévisionnel de maintenance",null,0,0,0,0,0]
[null,null,{"$f":"IF(VLOOKUP(QA_CONC[[#This Row],[Cas d''usage]],CAS_USAGES[[Cas d’usages]:[Cas d''usage mis en place ?]],8,FALSE)=\"OUI\",\"X\",\"\")","v":""},{"$f":"_xlfn.CONCAT(\"C-\",_xlfn.XLOOKUP(QA_CONC[[#This Row],[Cas d''usage]],CAS_USAGES[Cas d’usages],CAS_USAGES[ID]))","v":"C-23"},"Rétribution de données dans une base de données publique",null,0,0,0,0,0]
[null,null,{"$f":"IF(VLOOKUP(QA_CONC[[#This Row],[Cas d''usage]],CAS_USAGES[[Cas d’usages]:[Cas d''usage mis en place ?]],8,FALSE)=\"OUI\",\"X\",\"\")","v":""},{"$f":"_xlfn.CONCAT(\"C-\",_xlfn.XLOOKUP(QA_CONC[[#This Row],[Cas d''usage]],CAS_USAGES[Cas d’usages],CAS_USAGES[ID]))","v":"C-24"},"Communication de projet",null,0,0,0,0,0]
[]
[null,"EXECUTER","Utilisé ?","Code","Cas d'usage","Gain/perte de temps (jours)","Salaire journalier (euros)","Gain/Perte associés à l'économie de temps (euros)","Gains/pertes associés à l'économie de matériaux (euros)","Gains/pertes associés à l'économie de sous-traitance (euros)","TOTAL GAIN/PERTE"]
[null,null,{"$f":"IF(VLOOKUP(QA_EXEC[[#This Row],[Cas d''usage]],CAS_USAGES[[Cas d’usages]:[Cas d''usage mis en place ?]],8,FALSE)=\"OUI\",\"X\",\"\")","v":""},{"$f":"_xlfn.CONCAT(\"E-\",_xlfn.XLOOKUP(QA_EXEC[[#This Row],[Cas d''usage]],CAS_USAGES[Cas d’usages],CAS_USAGES[ID]))","v":"E-06"},"Modélisation du projet",null,0,{"$f":"G41*F41","v":0},0,0,{"$f":"SUM(H41:J41)","v":0}]
[null,null,{"$f":"IF(VLOOKUP(QA_EXEC[[#This Row],[Cas d''usage]],CAS_USAGES[[Cas d’usages]:[Cas d''usage mis en place ?]],8,FALSE)=\"OUI\",\"X\",\"\")","v":""},{"$f":"_xlfn.CONCAT(\"E-\",_xlfn.XLOOKUP(QA_EXEC[[#This Row],[Cas d''usage]],CAS_USAGES[Cas d’usages],CAS_USAGES[ID]))","v":"E-08"},"Revues de projet",null,0,0,0,0,0]
[null,null,{"$f":"IF(VLOOKUP(QA_EXEC[[#This Row],[Cas d''usage]],CAS_USAGES[[Cas d’usages]:[Cas d''usage mis en place ?]],8,FALSE)=\"OUI\",\"X\",\"\")","v":""},{"$f":"_xlfn.CONCAT(\"E-\",_xlfn.XLOOKUP(QA_EXEC[[#This Row],[Cas d''usage]],CAS_USAGES[Cas d’usages],CAS_USAGES[ID]))","v":"E-09"},"Production de livrables",null,0,0,0,0,0]
[null,null,{"$f":"IF(VLOOKUP(QA_EXEC[[#This Row],[Cas d''usage]],CAS_USAGES[[Cas d’usages]:[Cas d''usage mis en place ?]],8,FALSE)=\"OUI\",\"X\",\"\")","v":""},{"$f":"_xlfn.CONCAT(\"E-\",_xlfn.XLOOKUP(QA_EXEC[[#This Row],[Cas d''usage]],CAS_USAGES[Cas d’usages],CAS_USAGES[ID]))","v":"E-10"},"Evaluation de performances du projet",null,0,0,0,0,0]
[null,null,{"$f":"IF(VLOOKUP(QA_EXEC[[#This Row],[Cas d''usage]],CAS_USAGES[[Cas d’usages]:[Cas d''usage mis en place ?]],8,FALSE)=\"OUI\",\"X\",\"\")","v":""},{"$f":"_xlfn.CONCAT(\"E-\",_xlfn.XLOOKUP(QA_EXEC[[#This Row],[Cas d''usage]],CAS_USAGES[Cas d’usages],CAS_USAGES[ID]))","v":"E-11"},"Etudes des clash (conception et chantier)",null,0,0,0,0,0]
[null,null,{"$f":"IF(VLOOKUP(QA_EXEC[[#This Row],[Cas d''usage]],CAS_USAGES[[Cas d’usages]:[Cas d''usage mis en place ?]],8,FALSE)=\"OUI\",\"X\",\"\")","v":""},{"$f":"_xlfn.CONCAT(\"E-\",_xlfn.XLOOKUP(QA_EXEC[[#This Row],[Cas d''usage]],CAS_USAGES[Cas d’usages],CAS_USAGES[ID]))","v":"E-12"},"Contrôle du modèle et de la donnée",null,0,0,0,0,0]
[null,null,{"$f":"IF(VLOOKUP(QA_EXEC[[#This Row],[Cas d''usage]],CAS_USAGES[[Cas d’usages]:[Cas d''usage mis en place ?]],8,FALSE)=\"OUI\",\"X\",\"\")","v":""},{"$f":"_xlfn.CONCAT(\"E-\",_xlfn.XLOOKUP(QA_EXEC[[#This Row],[Cas d''usage]],CAS_USAGES[Cas d’usages],CAS_USAGES[ID]))","v":"E-13"},"Réalisation de quantitatifs",null,0,0,0,0,0]
[null,null,{"$f":"IF(VLOOKUP(QA_EXEC[[#This Row],[Cas d''usage]],CAS_USAGES[[Cas d’usages]:[Cas d''usage mis en place ?]],8,FALSE)=\"OUI\",\"X\",\"\")","v":""},{"$f":"_xlfn.CONCAT(\"E-\",_xlfn.XLOOKUP(QA_EXEC[[#This Row],[Cas d''usage]],CAS_USAGES[Cas d’usages],CAS_USAGES[ID]))","v":"E-14"},"Conception de systèmes constructifs",null,null,0,null,null,0]
[null,null,{"$f":"IF(VLOOKUP(QA_EXEC[[#This Row],[Cas d''usage]],CAS_USAGES[[Cas d’usages]:[Cas d''usage mis en place ?]],8,FALSE)=\"OUI\",\"X\",\"\")","v":""},{"$f":"_xlfn.CONCAT(\"E-\",_xlfn.XLOOKUP(QA_EXEC[[#This Row],[Cas d''usage]],CAS_USAGES[Cas d’usages],CAS_USAGES[ID]))","v":"E-15"},"Phasage du chantier / Planification / aménagement",null,0,0,0,0,0]
[null,null,{"$f":"IF(VLOOKUP(QA_EXEC[[#This Row],[Cas d''usage]],CAS_USAGES[[Cas d’usages]:[Cas d''usage mis en place ?]],8,FALSE)=\"OUI\",\"X\",\"\")","v":""},{"$f":"_xlfn.CONCAT(\"E-\",_xlfn.XLOOKUP(QA_EXEC[[#This Row],[Cas d''usage]],CAS_USAGES[Cas d’usages],CAS_USAGES[ID]))","v":"E-17"},"Préparation de chantier (ouvrages provisoires, logistique…)",null,0,0,0,0,0]
[null,null,{"$f":"IF(VLOOKUP(QA_EXEC[[#This Row],[Cas d''usage]],CAS_USAGES[[Cas d’usages]:[Cas d''usage mis en place ?]],8,FALSE)=\"OUI\",\"X\",\"\")","v":""},{"$f":"_xlfn.CONCAT(\"E-\",_xlfn.XLOOKUP(QA_EXEC[[#This Row],[Cas d''usage]],CAS_USAGES[Cas d’usages],CAS_USAGES[ID]))","v":"E-18"},"Préfabrication",null,null,0,null,null,0]
[null,null,{"$f":"IF(VLOOKUP(QA_EXEC[[#This Row],[Cas d''usage]],CAS_USAGES[[Cas d’usages]:[Cas d''usage mis en place ?]],8,FALSE)=\"OUI\",\"X\",\"\")","v":""},{"$f":"_xlfn.CONCAT(\"E-\",_xlfn.XLOOKUP(QA_EXEC[[#This Row],[Cas d''usage]],CAS_USAGES[Cas d’usages],CAS_USAGES[ID]))","v":"E-19"},"Réception des ouvrages et Consolidation des dossiers des ouvrages exécutés numériques",null,0,0,0,0,0]
[null,null,{"$f":"IF(VLOOKUP(QA_EXEC[[#This Row],[Cas d''usage]],CAS_USAGES[[Cas d’usages]:[Cas d''usage mis en place ?]],8,FALSE)=\"OUI\",\"X\",\"\")","v":""},{"$f":"_xlfn.CONCAT(\"E-\",_xlfn.XLOOKUP(QA_EXEC[[#This Row],[Cas d''usage]],CAS_USAGES[Cas d’usages],CAS_USAGES[ID]))","v":"E-21"},"Plan prévisionnel de maintenance",null,0,0,0,0,0]
[null,null,{"$f":"IF(VLOOKUP(QA_EXEC[[#This Row],[Cas d''usage]],CAS_USAGES[[Cas d’usages]:[Cas d''usage mis en place ?]],8,FALSE)=\"OUI\",\"X\",\"\")","v":""},{"$f":"_xlfn.CONCAT(\"E-\",_xlfn.XLOOKUP(QA_EXEC[[#This Row],[Cas d''usage]],CAS_USAGES[Cas d’usages],CAS_USAGES[ID]))","v":"E-23"},"Rétribution de données dans une base de données publique",null,0,0,0,0,0]
[null,null,{"$f":"IF(VLOOKUP(QA_EXEC[[#This Row],[Cas d''usage]],CAS_USAGES[[Cas d’usages]:[Cas d''usage mis en place ?]],8,FALSE)=\"OUI\",\"X\",\"\")","v":""},{"$f":"_xlfn.CONCAT(\"E-\",_xlfn.XLOOKUP(QA_EXEC[[#This Row],[Cas d''usage]],CAS_USAGES[Cas d’usages],CAS_USAGES[ID]))","v":"E-24"},"Communication de projet",null,0,0,0,0,0]
[]
[null,"GERER","Utilisé ?","Code","Cas d'usage","Gain/perte de temps (jours)","Salaire journalier (euros)","Gain/Perte associés à l'économie de temps (euros)","Gains/pertes associés à l'économie de matériaux (euros)","Gains/pertes associés à l'économie de sous-traitance (euros)","TOTAL GAIN/PERTE"]
[null,null,{"$f":"IF(VLOOKUP(QA_GERE[[#This Row],[Cas d''usage]],CAS_USAGES[[Cas d’usages]:[Cas d''usage mis en place ?]],8,FALSE)=\"OUI\",\"X\",\"\")","v":""},{"$f":"_xlfn.CONCAT(\"G-\",_xlfn.XLOOKUP(QA_GERE[[#This Row],[Cas d''usage]],CAS_USAGES[Cas d’usages],CAS_USAGES[ID]))","v":"G-09"},"Production de livrables",null,0,{"$f":"G58*F58","v":0},0,0,{"$f":"SUM(H58:J58)","v":0}]
[null,null,{"$f":"IF(VLOOKUP(QA_GERE[[#This Row],[Cas d''usage]],CAS_USAGES[[Cas d’usages]:[Cas d''usage mis en place ?]],8,FALSE)=\"OUI\",\"X\",\"\")","v":""},{"$f":"_xlfn.CONCAT(\"G-\",_xlfn.XLOOKUP(QA_GERE[[#This Row],[Cas d''usage]],CAS_USAGES[Cas d’usages],CAS_USAGES[ID]))","v":"G-10"},"Evaluation de performances du projet",null,0,{"$f":"G59*F59","v":0},0,0,{"$f":"SUM(H59:J59)","v":0}]
[null,null,{"$f":"IF(VLOOKUP(QA_GERE[[#This Row],[Cas d''usage]],CAS_USAGES[[Cas d’usages]:[Cas d''usage mis en place ?]],8,FALSE)=\"OUI\",\"X\",\"\")","v":""},{"$f":"_xlfn.CONCAT(\"G-\",_xlfn.XLOOKUP(QA_GERE[[#This Row],[Cas d''usage]],CAS_USAGES[Cas d’usages],CAS_USAGES[ID]))","v":"G-12"},"Contrôle du modèle et de la donnée",null,0,0,0,0,0]
[null,null,{"$f":"IF(VLOOKUP(QA_GERE[[#This Row],[Cas d''usage]],CAS_USAGES[[Cas d’usages]:[Cas d''usage mis en place ?]],8,FALSE)=\"OUI\",\"X\",\"\")","v":""},{"$f":"_xlfn.CONCAT(\"G-\",_xlfn.XLOOKUP(QA_GERE[[#This Row],[Cas d''usage]],CAS_USAGES[Cas d’usages],CAS_USAGES[ID]))","v":"G-13"},"Réalisation de quantitatifs",null,0,0,0,0,0]
[null,null,{"$f":"IF(VLOOKUP(QA_GERE[[#This Row],[Cas d''usage]],CAS_USAGES[[Cas d’usages]:[Cas d''usage mis en place ?]],8,FALSE)=\"OUI\",\"X\",\"\")","v":""},{"$f":"_xlfn.CONCAT(\"G-\",_xlfn.XLOOKUP(QA_GERE[[#This Row],[Cas d''usage]],CAS_USAGES[Cas d’usages],CAS_USAGES[ID]))","v":"G-21"},"Plan prévisionnel de maintenance",null,0,0,0,0,0]
[null,null,{"$f":"IF(VLOOKUP(QA_GERE[[#This Row],[Cas d''usage]],CAS_USAGES[[Cas d’usages]:[Cas d''usage mis en place ?]],8,FALSE)=\"OUI\",\"X\",\"\")","v":""},{"$f":"_xlfn.CONCAT(\"G-\",_xlfn.XLOOKUP(QA_GERE[[#This Row],[Cas d''usage]],CAS_USAGES[Cas d’usages],CAS_USAGES[ID]))","v":"G-22"},"Gestion des ouvrages et des équipements par gestionnaire",null,0,0,0,0,0]
[null,null,{"$f":"IF(VLOOKUP(QA_GERE[[#This Row],[Cas d''usage]],CAS_USAGES[[Cas d’usages]:[Cas d''usage mis en place ?]],8,FALSE)=\"OUI\",\"X\",\"\")","v":""},{"$f":"_xlfn.CONCAT(\"G-\",_xlfn.XLOOKUP(QA_GERE[[#This Row],[Cas d''usage]],CAS_USAGES[Cas d’usages],CAS_USAGES[ID]))","v":"G-23"},"Rétribution de données dans une base de données publique",null,0,0,0,0,0]
[null,null,{"$f":"IF(VLOOKUP(QA_GERE[[#This Row],[Cas d''usage]],CAS_USAGES[[Cas d’usages]:[Cas d''usage mis en place ?]],8,FALSE)=\"OUI\",\"X\",\"\")","v":""},{"$f":"_xlfn.CONCAT(\"G-\",_xlfn.XLOOKUP(QA_GERE[[#This Row],[Cas d''usage]],CAS_USAGES[Cas d’usages],CAS_USAGES[ID]))","v":"G-24"},"Communication de projet",null,0,0,0,0,0]
[]
[null,"TOTAUX",null,null,null,null,null,{"$f":"SUM(SUMIF($C$58:$C$65,\"X\",H58:H65),SUMIF($C$41:$C$55,\"X\",H41:H55),SUMIF($C$20:$C$38,\"X\",H20:H38),SUMIF($C$6:$C$17,\"X\",H6:H17))","v":0},{"$f":"SUM(SUMIF($C$58:$C$65,\"X\",I58:I65),SUMIF($C$41:$C$55,\"X\",I41:I55),SUMIF($C$20:$C$38,\"X\",I20:I38),SUMIF($C$6:$C$17,\"X\",I6:I17))","v":0},{"$f":"SUM(SUMIF($C$58:$C$65,\"X\",J58:J65),SUMIF($C$41:$C$55,\"X\",J41:J55),SUMIF($C$20:$C$38,\"X\",J20:J38),SUMIF($C$6:$C$17,\"X\",J6:J17))","v":0},{"$f":"SUM(SUMIF($C$58:$C$65,\"X\",K58:K65),SUMIF($C$41:$C$55,\"X\",K41:K55),SUMIF($C$20:$C$38,\"X\",K20:K38),SUMIF($C$6:$C$17,\"X\",K6:K17))","v":0}]

{"sheet":"Analyse des gains indirects","index":6,"n_rows":13,"n_cols":9,"rows_kept":13,"cut":false,"hidden":false,"merged":[[69,2,69,8],[1,1,1,8],[1,11,1,14]]}
[null,"Retour à la page d'accueil"]
[null,"Analyse quantitative des gains indirects"]
[]
[]
[null,"Gains indirects liés au gain de temps éventuels pour la réalisation"]
[null,null,"Gain de temps estimé par rapport au planning initial (jours)",null,null,null,null,0]
[null,null,null,null,null,null,null,"Coût journalier (€)"]
[null,"GI-1","Coût journalier de l'entreprise pour le dépassement de temps considéré (conditions générales (Euros/Jours))",null,null,null,null,0,{"$f":"$H$6*H8","v":0}]
[null,"GI-2","Coût journalier des 5% d'intérêts relatifs à l'emprunt pour la construction pour le dépassement de temps considéré",null,null,null,null,0,{"$f":"$H$6*H9","v":0}]
[null,"GI-3","Coût journalier associé aux frais administratifs du promoteur pour le dépassement de temps considéré",null,null,null,null,0,0]
[null,"GI-4","Coûts journaliers associés aux frais administratifs du contrat d'architecte pour le dépassement de temps considéré",null,null,null,null,0,0]
[]
[null,null,null,null,null,null,null,"TOTAL",{"$f":"SUM(I8:I11)","v":0}]

{"sheet":"RECAP","index":7,"n_rows":65,"n_cols":19,"rows_kept":65,"cut":false,"hidden":false,"merged":[[29,7,29,8],[9,7,9,8],[9,10,9,18],[17,7,17,8],[9,0,9,1],[9,3,9,5]]}
["Intervenant",{"$f":"'Cas d''usages'!E2","v":0}]
["Rôle",{"$f":"'Cas d''usages'!E3","v":"Architecte"}]
["Responsable",{"$f":"'Cas d''usages'!E4","v":0}]
["Mail de contact",{"$f":"'Cas d''usages'!E5","v":0}]
[]
[]
[]
[]
[]
["CAS D'USAGES",null,null,"GAINS DIRECTS",null,null,null,"GAINS INDIRECTS",null,null,"ANALYSE QUALITATIVE"]
["CAS D'USAGE","Utilisation","Maturité","Utilisation","CODE-CU","Gain",null,{"$f":"'Analyse des gains indirects'!B8","v":"GI-1"},{"$f":"'Analyse des gains indirects'!I8","v":0},null,null,{"$f":"'Analyse qualitative'!C4","v":"Accès au marché"},{"$f":"'Analyse qualitative'!D4","v":"Partage d'idée"},{"$f":"'Analyse qualitative'!E4","v":"Communication"},{"$f":"'Analyse qualitative'!F4","v":"Processus de décision"},{"$f":"'Analyse qualitative'!G4","v":"Gestion de l'information"},{"$f":"'Analyse qualitative'!H4","v":"Qualité des résultats produits"},{"$f":"'Analyse qualitative'!I4","v":"Acceptabilité du projet"},{"$f":"'Analyse qualitative'!J4","v":"Image de marque"}]
[1,{"$f":"'Cas d''usages'!K11","v":"NON"},{"$f":"'Cas d''usages'!L11","v":"NC"},{"$f":"'Analyse des gains directs'!C6","v":""},{"$f":"'Analyse des gains directs'!D6","v":"P-01"},{"$f":"'Analyse des gains directs'!J6","v":0},null,{"$f":"'Analyse des gains indirects'!B9","v":"GI-2"},{"$f":"'Analyse des gains indirects'!I9","v":0},null,{"$f":"'Analyse qualitative'!B5","v":"Programmer"},{"$f":"'Analyse qualitative'!C5","v":0},{"$f":"'Analyse qualitative'!D5","v":0},{"$f":"'Analyse qualitative'!E5","v":0},{"$f":"'Analyse qualitative'!F5","v":0},{"$f":"'Analyse qualitative'!G5","v":0},{"$f":"'Analyse qualitative'!H5","v":0},{"$f":"'Analyse qualitative'!I5","v":0},{"$f":"'Analyse qualitative'!J5","v":0}]
[2,{"$f":"'Cas d''usages'!K12","v":"NON"},{"$f":"'Cas d''usages'!L12","v":"NC"},{"$f":"'Analyse des gains directs'!C7","v":""},{"$f":"'Analyse des gains directs'!D7","v":"P-02"},{"$f":"'Analyse des gains directs'!J7","v":0},null,{"$f":"'Analyse des gains indirects'!B10","v":"GI-3"},{"$f":"'Analyse des gains indirects'!I10","v":0},null,{"$f":"'Analyse qualitative'!B6","v":"Concevoir"},{"$f":"'Analyse qualitative'!C6","v":0},{"$f":"'Analyse qualitative'!D6","v":0},{"$f":"'Analyse qualitative'!E6","v":0},{"$f":"'Analyse qualitative'!F6","v":0},{"$f":"'Analyse qualitative'!G6","v":0},{"$f":"'Analyse qualitative'!H6","v":0},{"$f":"'Analyse qualitative'!I6","v":0},{"$f":"'Analyse qualitative'!J6","v":0}]
[3,{"$f":"'Cas d''usages'!K13","v":"NON"},{"$f":"'Cas d''usages'!L13","v":"NC"},{"$f":"'Analyse des gains directs'!C8","v":""},{"$f":"'Analyse des gains directs'!D8","v":"P-04"},{"$f":"'Analyse des gains directs'!J8","v":0},null,{"$f":"'Analyse des gains indirects'!B11","v":"GI-4"},{"$f":"'Analyse des gains indirects'!I11","v":0},null,{"$f":"'Analyse qualitative'!B7","v":"Exécuter"},{"$f":"'Analyse qualitative'!C7","v":0},{"$f":"'Analyse qualitative'!D7","v":0},{"$f":"'Analyse qualitative'!E7","v":0},{"$f":"'Analyse qualitative'!F7","v":0},{"$f":"'Analyse qualitative'!G7","v":0},{"$f":"'Analyse qualitative'!H7","v":0},{"$f":"'Analyse qualitative'!I7","v":0},{"$f":"'Analyse qualitative'!J7","v":0}]
[4,{"$f":"'Cas d''usages'!K14","v":"NON"},{"$f":"'Cas d''usages'!L14","v":"NC"},{"$f":"'Analyse des gains directs'!C9","v":""},{"$f":"'Analyse des gains directs'!D9","v":"P-05"},{"$f":"'Analyse des gains directs'!J9","v":0},null,null,null,null,{"$f":"'Analyse qualitative'!B8","v":"Gérer et maintenir"},{"$f":"'Analyse qualitative'!C8","v":0},{"$f":"'Analyse qualitative'!D8","v":0},{"$f":"'Analyse qualitative'!E8","v":0},{"$f":"'Analyse qualitative'!F8","v":0},{"$f":"'Analyse qualitative'!G8","v":0},{"$f":"'Analyse qualitative'!H8","v":0},{"$f":"'Analyse qualitative'!I8","v":0},{"$f":"'Analyse qualitative'!J8","v":0}]
[5,{"$f":"'Cas d''usages'!K15","v":"NON"},{"$f":"'Cas d''usages'!L15","v":"NC"},{"$f":"'Analyse des gains directs'!C10","v":""},{"$f":"'Analyse des gains directs'!D10","v":"P-06"},{"$f":"'Analyse des gains directs'!J10","v":0},null,"Jour",{"$f":"H6","v":0}]
[6,{"$f":"'Cas d''usages'!K16","v":"NON"},{"$f":"'Cas d''usages'!L16","v":"NC"},{"$f":"'Analyse des gains directs'!C11","v":""},{"$f":"'Analyse des gains directs'!D11","v":"P-07"},{"$f":"'Analyse des gains directs'!J11","v":0}]
[7,{"$f":"'Cas d''usages'!K17","v":"NON"},{"$f":"'Cas d''usages'!L17","v":"NC"},{"$f":"'Analyse des gains directs'!C12","v":""},{"$f":"'Analyse des gains directs'!D12","v":"P-08"},{"$f":"'Analyse des gains directs'!J12","v":0},null,"COUTS FIXES"]
[8,{"$f":"'Cas d''usages'!K18","v":"NON"},{"$f":"'Cas d''usages'!L18","v":"NC"},{"$f":"'Analyse des gains directs'!C13","v":""},{"$f":"'Analyse des gains directs'!D13","v":"P-09"},{"$f":"'Analyse des gains directs'!J13","v":0},null,{"$f":"'Coût fixes'!B6","v":"Matériel"},{"$f":"'Coût fixes'!C6","v":0}]
[9,{"$f":"'Cas d''usages'!K19","v":"NON"},{"$f":"'Cas d''usages'!L19","v":"NC"},{"$f":"'Analyse des gains directs'!C14","v":""},{"$f":"'Analyse des gains directs'!D14","v":"P-11"},{"$f":"'Analyse des gains directs'!J14","v":0},null,{"$f":"'Coût fixes'!B7","v":"Licence"},{"$f":"'Coût fixes'!C7","v":0}]
[10,{"$f":"'Cas d''usages'!K20","v":"NON"},{"$f":"'Cas d''usages'!L20","v":"NC"},{"$f":"'Analyse des gains directs'!C15","v":""},{"$f":"'Analyse des gains directs'!D15","v":"P-12"},{"$f":"'Analyse des gains directs'!J15","v":0},null,{"$f":"'Coût fixes'!B8","v":"Maintenance"},{"$f":"'Coût fixes'!C8","v":0}]
[11,{"$f":"'Cas d''usages'!K21","v":"NON"},{"$f":"'Cas d''usages'!L21","v":"NC"},{"$f":"'Analyse des gains directs'!C16","v":""},{"$f":"'Analyse des gains directs'!D16","v":"P-13"},{"$f":"'Analyse des gains directs'!J16","v":0},null,{"$f":"'Coût fixes'!B9","v":"Formation"},{"$f":"'Coût fixes'!C9","v":0}]
[12,{"$f":"'Cas d''usages'!K22","v":"NON"},{"$f":"'Cas d''usages'!L22","v":"NC"},{"$f":"'Analyse des gains directs'!C17","v":""},{"$f":"'Analyse des gains directs'!D17","v":"P-24"},{"$f":"'Analyse des gains directs'!J17","v":0},null,{"$f":"'Coût fixes'!B10","v":"Espace physique dédié"},{"$f":"'Coût fixes'!C10","v":0}]
[13,{"$f":"'Cas d''usages'!K23","v":"NON"},{"$f":"'Cas d''usages'!L23","v":"NC"},{"$f":"'Analyse des gains directs'!C20","v":""},{"$f":"'Analyse des gains directs'!D20","v":"C-04"},{"$f":"'Analyse des gains directs'!J20","v":0},null,{"$f":"'Coût fixes'!B11","v":"Recrutement spécifique"},{"$f":"'Coût fixes'!C11","v":0}]
[14,{"$f":"'Cas d''usages'!K24","v":"NON"},{"$f":"'Cas d''usages'!L24","v":"NC"},{"$f":"'Analyse des gains directs'!C21","v":""},{"$f":"'Analyse des gains directs'!D21","v":"C-05"},{"$f":"'Analyse des gains directs'!J21","v":0},null,{"$f":"'Coût fixes'!B12","v":"Consultance"},{"$f":"'Coût fixes'!C12","v":0}]
[15,{"$f":"'Cas d''usages'!K25","v":"NON"},{"$f":"'Cas d''usages'!L25","v":"NC"},{"$f":"'Analyse des gains directs'!C22","v":""},{"$f":"'Analyse des gains directs'!D22","v":"C-06"},{"$f":"'Analyse des gains directs'!J22","v":0},null,{"$f":"'Coût fixes'!B13","v":"Données spécifiques"},{"$f":"'Coût fixes'!C13","v":0}]
[16,{"$f":"'Cas d''usages'!K26","v":"NON"},{"$f":"'Cas d''usages'!L26","v":"NC"},{"$f":"'Analyse des gains directs'!C23","v":""},{"$f":"'Analyse des gains directs'!D23","v":"C-07"},{"$f":"'Analyse des gains directs'!J23","v":0},null,{"$f":"'Coût fixes'!B14","v":"Autre"},{"$f":"'Coût fixes'!C14","v":0}]
[17,{"$f":"'Cas d''usages'!K27","v":"NON"},{"$f":"'Cas d''usages'!L27","v":"NC"},{"$f":"'Analyse des gains directs'!C24","v":""},{"$f":"'Analyse des gains directs'!D24","v":"C-08"},{"$f":"'Analyse des gains directs'!J24","v":0}]
[18,{"$f":"'Cas d''usages'!K28","v":"NON"},{"$f":"'Cas d''usages'!L28","v":"NC"},{"$f":"'Analyse des gains directs'!C25","v":""},{"$f":"'Analyse des gains directs'!D25","v":"C-09"},{"$f":"'Analyse des gains directs'!J25","v":0}]
[19,{"$f":"'Cas d''usages'!K29","v":"NON"},{"$f":"'Cas d''usages'!L29","v":"NC"},{"$f":"'Analyse des gains directs'!C26","v":""},{"$f":"'Analyse des gains directs'!D26","v":"C-10"},{"$f":"'Analyse des gains directs'!J26","v":0},null,"QUALITE ARCHI"]
[20,{"$f":"'Cas d''usages'!K30","v":"NON"},{"$f":"'Cas d''usages'!L30","v":"NC"},{"$f":"'Analyse des gains directs'!C27","v":""},{"$f":"'Analyse des gains directs'!D27","v":"C-11"},{"$f":"'Analyse des gains directs'!J27","v":0},null,"Etude urbaine",{"$f":"'Qualité Architecturale'!F5","v":0}]
[21,{"$f":"'Cas d''usages'!K31","v":"NON"},{"$f":"'Cas d''usages'!L31","v":"NC"},{"$f":"'Analyse des gains directs'!C28","v":""},{"$f":"'Analyse des gains directs'!D28","v":"C-12"},{"$f":"'Analyse des gains directs'!J28","v":0},null,"Etude historique",{"$f":"'Qualité Architecturale'!F6","v":0}]
[22,{"$f":"'Cas d''usages'!K32","v":"NON"},{"$f":"'Cas d''usages'!L32","v":"NC"},{"$f":"'Analyse des gains directs'!C29","v":""},{"$f":"'Analyse des gains directs'!D29","v":"C-13"},{"$f":"'Analyse des gains directs'!J29","v":0},null,"Etude architecturale",{"$f":"'Qualité Architecturale'!F7","v":0}]
[23,{"$f":"'Cas d''usages'!K33","v":"NON"},{"$f":"'Cas d''usages'!L33","v":"NC"},{"$f":"'Analyse des gains directs'!C30","v":""},{"$f":"'Analyse des gains directs'!D30","v":"C-14"},{"$f":"'Analyse des gains directs'!J30","v":0},null,"Ensoleillement",{"$f":"'Qualité Architecturale'!F10","v":0}]
[24,{"$f":"'Cas d''usages'!K34","v":"NON"},{"$f":"'Cas d''usages'!L34","v":"NC"},{"$f":"'Analyse des gains directs'!C31","v":""},{"$f":"'Analyse des gains directs'!D31","v":"C-15"},{"$f":"'Analyse des gains directs'!J31","v":0},null,"Eolien",{"$f":"'Qualité Architecturale'!F11","v":0}]
[null,null,null,{"$f":"'Analyse des gains directs'!C32","v":""},{"$f":"'Analyse des gains directs'!D32","v":"C-16"},{"$f":"'Analyse des gains directs'!J32","v":0},null,"Acoustique",{"$f":"'Qualité Architecturale'!F12","v":0}]
[null,null,null,{"$f":"'Analyse des gains directs'!C33","v":""},{"$f":"'Analyse des gains directs'!D33","v":"C-17"},{"$f":"'Analyse des gains directs'!J33","v":0},null,"Confort thermique",{"$f":"'Qualité Architecturale'!F13","v":0}]
[null,null,null,{"$f":"'Analyse des gains directs'!C34","v":""},{"$f":"'Analyse des gains directs'!D34","v":"C-16"},{"$f":"'Analyse des gains directs'!J34","v":0},null,"Geosource",{"$f":"'Qualité Architecturale'!F16","v":0}]
[null,null,null,{"$f":"'Analyse des gains directs'!C35","v":""},{"$f":"'Analyse des gains directs'!D35","v":"C-19"},{"$f":"'Analyse des gains directs'!J35","v":0},null,"Mat Nobles",{"$f":"'Qualité Architecturale'!F17","v":0}]
[null,null,null,{"$f":"'Analyse des gains directs'!C36","v":""},{"$f":"'Analyse des gains directs'!D36","v":"C-21"},{"$f":"'Analyse des gains directs'!J36","v":0},null,"Mat locaux",{"$f":"'Qualité Architecturale'!F18","v":0}]
[null,null,null,{"$f":"'Analyse des gains directs'!C37","v":""},{"$f":"'Analyse des gains directs'!D37","v":"C-23"},{"$f":"'Analyse des gains directs'!J37","v":0}]
[null,null,null,{"$f":"'Analyse des gains directs'!C38","v":""},{"$f":"'Analyse des gains directs'!D38","v":"C-24"},{"$f":"'Analyse des gains directs'!J38","v":0}]
[null,null,null,{"$f":"'Analyse des gains directs'!C41","v":""},{"$f":"'Analyse des gains directs'!D41","v":"E-06"},{"$f":"'Analyse des gains directs'!J41","v":0}]
[null,null,null,{"$f":"'Analyse des gains directs'!C42","v":""},{"$f":"'Analyse des gains directs'!D42","v":"E-08"},{"$f":"'Analyse des gains directs'!J42","v":0}]
[null,null,null,{"$f":"'Analyse des gains directs'!C43","v":""},{"$f":"'Analyse des gains directs'!D43","v":"E-09"},{"$f":"'Analyse des gains directs'!J43","v":0}]
[null,null,null,{"$f":"'Analyse des gains directs'!C44","v":""},{"$f":"'Analyse des gains directs'!D44","v":"E-10"},{"$f":"'Analyse des gains directs'!J44","v":0}]
[null,null,null,{"$f":"'Analyse des gains directs'!C45","v":""},{"$f":"'Analyse des gains directs'!D45","v":"E-11"},{"$f":"'Analyse des gains directs'!J45","v":0}]
[null,null,null,{"$f":"'Analyse des gains directs'!C46","v":""},{"$f":"'Analyse des gains directs'!D46","v":"E-12"},{"$f":"'Analyse des gains directs'!J46","v":0}]
[null,null,null,{"$f":"'Analyse des gains directs'!C47","v":""},{"$f":"'Analyse des gains directs'!D47","v":"E-13"},{"$f":"'Analyse des gains directs'!J47","v":0}]
[null,null,null,{"$f":"'Analyse des gains directs'!C48","v":""},{"$f":"'Analyse des gains directs'!D48","v":"E-14"},{"$f":"'Analyse des gains directs'!J48","v":0}]
[null,null,null,{"$f":"'Analyse des gains directs'!C49","v":""},{"$f":"'Analyse des gains directs'!D49","v":"E-15"},{"$f":"'Analyse des gains directs'!J49","v":0}]
[null,null,null,{"$f":"'Analyse des gains directs'!C50","v":""},{"$f":"'Analyse des gains directs'!D50","v":"E-17"},{"$f":"'Analyse des gains directs'!J50","v":0}]
[null,null,null,{"$f":"'Analyse des gains directs'!C51","v":""},{"$f":"'Analyse des gains directs'!D51","v":"E-18"},{"$f":"'Analyse des gains directs'!J51","v":0}]
[null,null,null,{"$f":"'Analyse des gains directs'!C52","v":""},{"$f":"'Analyse des gains directs'!D52","v":"E-19"},{"$f":"'Analyse des gains directs'!J52","v":0}]
[null,null,null,{"$f":"'Analyse des gains directs'!C53","v":""},{"$f":"'Analyse des gains directs'!D53","v":"E-21"},{"$f":"'Analyse des gains directs'!J53","v":0}]
[null,null,null,{"$f":"'Analyse des gains directs'!C54","v":""},{"$f":"'Analyse des gains directs'!D54","v":"E-23"},{"$f":"'Analyse des gains directs'!J54","v":0}]
[null,null,null,{"$f":"'Analyse des gains directs'!C55","v":""},{"$f":"'Analyse des gains directs'!D55","v":"E-24"},{"$f":"'Analyse des gains directs'!J55","v":0}]
[null,null,null,{"$f":"'Analyse des gains directs'!C58","v":""},{"$f":"'Analyse des gains directs'!D58","v":"G-09"},{"$f":"'Analyse des gains directs'!J58","v":0}]
[null,null,null,{"$f":"'Analyse des gains directs'!C59","v":""},{"$f":"'Analyse des gains directs'!D59","v":"G-10"},{"$f":"'Analyse des gains directs'!J59","v":0}]
[null,null,null,{"$f":"'Analyse des gains directs'!C60","v":""},{"$f":"'Analyse des gains directs'!D60","v":"G-12"},{"$f":"'Analyse des gains directs'!J60","v":0}]
[null,null,null,{"$f":"'Analyse des gains directs'!C61","v":""},{"$f":"'Analyse des gains directs'!D61","v":"G-13"},{"$f":"'Analyse des gains directs'!J61","v":0}]
[null,null,null,{"$f":"'Analyse des gains directs'!C62","v":""},{"$f":"'Analyse des gains directs'!D62","v":"G-21"},{"$f":"'Analyse des gains directs'!J62","v":0}]
[null,null,null,{"$f":"'Analyse des gains directs'!C63","v":""},{"$f":"'Analyse des gains directs'!D63","v":"G-22"},{"$f":"'Analyse des gains directs'!J63","v":0}]
[null,null,null,{"$f":"'Analyse des gains directs'!C64","v":""},{"$f":"'Analyse des gains directs'!D64","v":"G-23"},{"$f":"'Analyse des gains directs'!J64","v":0}]
[null,null,null,{"$f":"'Analyse des gains directs'!C65","v":""},{"$f":"'Analyse des gains directs'!D65","v":"G-24"},{"$f":"'Analyse des gains directs'!J65","v":0}]